fUST/lending_fUST_20260601
["ID","MTS","AMOUNT","RATE_DAILY","PERIOD"]
[423580150,1780248654000,-5850.0,0.0002141,2]
[423580141,1780248654000,-456.9255797,0.000214,2]
[423580139,1780248654000,-456.9255797,0.000214,2]
[423580137,1780248654000,-3000.0,0.000214,2]
[423580145,1780248654000,-456.9255797,0.000214,2]
[423580229,1780248655000,-944.99,0.00022153,2]
[423580231,1780248655000,-1670.88,0.00022153,2]
[423580228,1780248655000,-150.75,0.00022153,7]
[423580225,1780248655000,-1567.21,0.00022152,2]
[423580220,1780248655000,-521.63,0.00022152,2]
[423580224,1780248655000,-500.0,0.00022152,2]
[423580233,1780248655000,-572.53,0.00022153,2]
[423580234,1780248655000,-603.85,0.00022153,2]
[423580221,1780248655000,-1348.75,0.00022152,2]
[423580232,1780248655000,-542.05,0.00022153,2]
[423580222,1780248655000,-552.58,0.00022152,2]
[423580226,1780248655000,-3745.47,0.00022152,2]
[423580223,1780248655000,-534.45,0.00022152,2]
[423580230,1780248655000,-603.91,0.00022153,2]
[423580239,1780248655000,-158.0,0.00022337,30]
[423580235,1780248655000,-150.75,0.00022203,7]
[423580237,1780248655000,-151.44,0.000223,2]
[423580244,1780248655000,-1423.18,0.000224,2]
[423580238,1780248655000,-150.75,0.00022303,7]
[423580240,1780248655000,-150.75,0.00022353,7]
[423580241,1780248655000,-1712.3451,0.000224,2]
[423580243,1780248655000,-1423.18,0.000224,2]
[423580236,1780248655000,-150.75,0.00022253,7]
[423580242,1780248655000,-1547.6499,0.000224,2]
[423580246,1780248655000,-303.07,0.000224,2]
[423580245,1780248655000,-1423.17,0.000224,2]
[423580247,1780248655000,-151.44,0.000224,2]
[423580249,1780248655000,-1348.75,0.00022426,2]
[423580219,1780248655000,-150.75,0.00022103,7]
[423580227,1780248655000,-1807.05,0.00022152,2]
[423580218,1780248655000,-151.44,0.000221,2]
[423580189,1780248655000,-500.0,0.00021736,2]
[423580215,1780248655000,-390.25,0.0002201,2]
[423580186,1780248655000,-1613.0,0.00021718,2]
[423580192,1780248655000,-150.75,0.00021853,2]
[423580188,1780248655000,-285.30003306,0.00021736,2]
[423580193,1780248655000,-500.0,0.00021878,2]
[423580190,1780248655000,-150.75,0.00021753,2]
[423580185,1780248655000,-348.6130088,0.00021706,7]
[423580191,1780248655000,-150.75,0.00021803,2]
[423580187,1780248655000,-500.0,0.00021736,2]
[423580194,1780248655000,-1348.75,0.00021878,2]
[423580195,1780248655000,-552.58,0.00021878,2]
[423580201,1780248655000,-944.99,0.00021879,2]
[423580200,1780248655000,-1807.05,0.00021878,2]
[423580205,1780248655000,-572.53,0.00021879,2]
[423580206,1780248655000,-603.85,0.00021879,2]
[423580214,1780248655000,-150.75,0.00022003,7]
[423580197,1780248655000,-500.0,0.00021878,2]
[423580203,1780248655000,-1670.88,0.00021879,2]
[423580199,1780248655000,-3745.47,0.00021878,2]
[423580198,1780248655000,-1567.21,0.00021878,2]
[423580204,1780248655000,-542.05,0.00021879,2]
[423580202,1780248655000,-603.91,0.00021879,2]
[423580210,1780248655000,-151.0,0.00021918,2]
[423580213,1780248655000,-158.0,0.00022,2]
[423580212,1780248655000,-150.75,0.00021953,7]
[423580207,1780248655000,-151.44,0.000219,2]
[423580216,1780248655000,-219.68,0.0002201,2]
[423580208,1780248655000,-150.75,0.00021903,2]
[423580209,1780248655000,-191.016808,0.00021918,2]
[423580211,1780248655000,-166.588353,0.00021918,2]
[423580217,1780248655000,-150.75,0.00022053,7]
[423580196,1780248655000,-534.45,0.00021878,2]
[423580248,1780248655000,-150.75,0.00022403,7]
[423580250,1780248655000,-552.58,0.00022426,2]
[423580252,1780248655000,-500.0,0.00022426,2]
[423580287,1780248655000,-1000.0,0.0002272,5]
[423580290,1780248655000,-1000.0,0.0002276,5]
[423580289,1780248655000,-150.75,0.00022753,7]
[423580295,1780248655000,-150.75,0.00022803,7]
[423580297,1780248655000,-150.75,0.00022853,7]
[423580293,1780248655000,-1000.0,0.000228,5]
[423580294,1780248655000,-150.0,0.000228,2]
[423580286,1780248655000,-150.75,0.00022703,7]
[423580291,1780248655000,-1000.0,0.0002278,5]
[423580298,1780248655000,-832.050277,0.00022893,2]
[423580292,1780248655000,-150.0,0.000228,2]
[423580296,1780248655000,-351.30024234,0.00022806,2]
[423580300,1780248655000,-150.75,0.00022953,7]
[423580299,1780248655000,-150.75,0.00022903,7]
[423580301,1780248655000,-1348.78,0.00022973,2]
[423580302,1780248655000,-552.58,0.00022973,2]
[423580312,1780248655000,-572.75,0.00022975,2]
[423580310,1780248655000,-1670.93,0.00022975,2]
[423580304,1780248655000,-470.11158996,0.00022973,2]
[423580303,1780248655000,-534.45,0.00022973,2]
[423580311,1780248655000,-542.13,0.00022975,2]
[423580307,1780248655000,-1807.05,0.00022973,2]
[423580305,1780248655000,-1567.27,0.00022973,2]
[423580306,1780248655000,-3745.67899683,0.00022973,2]
[423580309,1780248655000,-604.12,0.00022975,2]
[423580308,1780248655000,-945.22,0.00022975,2]
[423580313,1780248655000,-603.97,0.00022975,2]
[423580315,1780248655000,-160.0,0.00023,2]
[423580255,1780248655000,-1807.05,0.00022426,2]
[423580285,1780248655000,-603.85,0.00022701,2]
[423580288,1780248655000,-1000.0,0.0002274,5]
[423580314,1780248655000,-158.0,0.00023,2]
[423580278,1780248655000,-3745.47,0.000227,2]
[423580281,1780248655000,-603.91,0.00022701,2]
[423580259,1780248655000,-542.05,0.00022427,2]
[423580258,1780248655000,-1670.88,0.00022427,2]
[423580254,1780248655000,-3745.47,0.00022426,2]
[423580253,1780248655000,-1567.21,0.00022426,2]
[423580256,1780248655000,-944.99,0.00022427,2]
[423580257,1780248655000,-603.91,0.00022427,2]
[423580260,1780248655000,-572.53,0.00022427,2]
[423580262,1780248655000,-150.75,0.00022453,7]
[423580263,1780248655000,-150.75,0.00022503,7]
[423580264,1780248655000,-166.0,0.00022526,120]
[423580266,1780248655000,-150.75,0.00022603,7]
[423580261,1780248655000,-603.85,0.00022427,2]
[423580265,1780248655000,-150.75,0.00022553,7]
[423580267,1780248655000,-1444.778333,0.0002264,5]
[423580251,1780248655000,-534.45,0.00022426,2]
[423580269,1780248655000,-1000.0,0.0002266,5]
[423580271,1780248655000,-1000.0,0.0002268,5]
[423580280,1780248655000,-944.99,0.00022701,2]
[423580282,1780248655000,-1670.88,0.00022701,2]
[423580279,1780248655000,-1807.05,0.000227,2]
[423580277,1780248655000,-1567.21,0.000227,2]
[423580283,1780248655000,-542.05,0.00022701,2]
[423580284,1780248655000,-572.53,0.00022701,2]
[423580275,1780248655000,-534.45,0.000227,2]
[423580273,1780248655000,-1348.75,0.000227,2]
[423580274,1780248655000,-552.58,0.000227,2]
[423580272,1780248655000,-1000.0,0.000227,5]
[423580270,1780248655000,-158.0,0.00022674,120]
[423580268,1780248655000,-150.75,0.00022653,7]
[423580276,1780248655000,-500.0,0.000227,2]
[423580358,1780248656000,-280.0,0.00024658,2]
[423580354,1780248656000,-150.86628151,0.00024053,7]
[423580356,1780248656000,-185.0,0.00024415,2]
[423580352,1780248656000,-150.75,0.00024003,7]
[423580353,1780248656000,-500.0,0.00024006,2]
[423580350,1780248656000,-160.0,0.00024,7]
[423580355,1780248656000,-158.0,0.00024337,30]
[423580351,1780248656000,-1030.0,0.00024,2]
[423580360,1780248656000,-500.0,0.00024658,2]
[423580348,1780248656000,-150.75,0.00023953,7]
[423580359,1780248656000,-500.0,0.00024658,2]
[423580357,1780248656000,-246.0,0.0002459,9]
[423580361,1780248656000,-257.39105782,0.00024658,2]
[423580362,1780248656000,-158.0,0.00024674,120]
[423580366,1780248656000,-364.65,0.000249,2]
[423580369,1780248656000,-1259.673914,0.0002498,5]
[423580368,1780248656000,-813.24,0.000249,2]
[423580370,1780248656000,-150.0,0.00025,2]
[423580363,1780248656000,-611.4849328,0.00024721,2]
[423580371,1780248656000,-500.0,0.00025,2]
[423580365,1780248656000,-245.76,0.000249,2]
[423580364,1780248656000,-160.0,0.00024882,3]
[423580373,1780248656000,-1000.0,0.00025,5]
[423580367,1780248656000,-364.11,0.000249,2]
[423580374,1780248656000,-269.4931174,0.00025,30]
[423580376,1780248656000,-162.70404441,0.00025189,3]
[423580377,1780248656000,-587.73694877,0.000252,5]
[423580349,1780248656000,-165.7733533,0.00024,2]
[423580372,1780248656000,-483.4186999,0.00025,30]
[423580341,1780248656000,-150.75,0.00023703,7]
[423580330,1780248656000,-150.75,0.00023553,7]
[423580347,1780248656000,-150.75,0.00023903,7]
[423580316,1780248656000,-150.75,0.00023003,7]
[423580324,1780248656000,-150.75,0.00023303,7]
[423580321,1780248656000,-150.75,0.00023203,7]
[423580319,1780248656000,-150.75,0.00023103,7]
[423580325,1780248656000,-158.0,0.00023337,30]
[423580323,1780248656000,-600.0,0.00023255,10]
[423580317,1780248656000,-218.0,0.0002303,4]
[423580322,1780248656000,-150.75,0.00023253,7]
[423580318,1780248656000,-150.75,0.00023053,7]
[423580320,1780248656000,-150.75,0.00023153,7]
[423580337,1780248656000,-150.75,0.00023603,7]
[423580334,1780248656000,-170.5471,0.000236,2]
[423580329,1780248656000,-150.75,0.00023503,7]
[423580326,1780248656000,-150.75,0.00023353,7]
[423580331,1780248656000,-307.21,0.000236,2]
[423580339,1780248656000,-150.75,0.00023653,7]
[423580338,1780248656000,-166.0,0.00023652,120]
[423580327,1780248656000,-150.75,0.00023403,7]
[423580335,1780248656000,-1016.55,0.000236,2]
[423580328,1780248656000,-150.75,0.00023453,7]
[423580332,1780248656000,-455.81,0.000236,2]
[423580333,1780248656000,-1710.413931,0.000236,2]
[423580336,1780248656000,-307.21,0.000236,2]
[423580343,1780248656000,-2258.0,0.00023799,2]
[423580340,1780248656000,-158.0,0.00023674,120]
[423580345,1780248656000,-150.75,0.00023803,7]
[423580378,1780248656000,-500.0,0.0002527,2]
[423580344,1780248656000,-150.0,0.000238,2]
[423580346,1780248656000,-150.75,0.00023853,7]
[423580342,1780248656000,-150.75,0.00023753,7]
[423580379,1780248656000,-158.0,0.00025337,30]
[423580427,1780248656000,-151.0,0.00027988,2]
[423580381,1780248656000,-6106.31835915,0.00025369,2]
[423580408,1780248656000,-151.5,0.00027397,2]
[423580426,1780248656000,-151.0,0.00027988,2]
[423580416,1780248656000,-185.0,0.00027415,2]
[423580417,1780248656000,-200.0,0.00027478,2]
[423580424,1780248656000,-151.0,0.00027988,2]
[423580415,1780248656000,-181.292023,0.00027397,2]
[423580422,1780248656000,-151.0,0.00027988,2]
[423580421,1780248656000,-151.0,0.00027988,2]
[423580423,1780248656000,-151.0,0.00027988,2]
[423580425,1780248656000,-151.0,0.00027988,2]
[423580419,1780248656000,-1579.78400029,0.0002787,26]
[423580418,1780248656000,-1000.0,0.00027777,5]
[423580428,1780248656000,-151.0,0.00027988,2]
[423580429,1780248656000,-151.0,0.00027988,2]
[423580430,1780248656000,-151.0,0.00027988,2]
[423580440,1780248656000,-151.0,0.00027988,5]
[423580441,1780248656000,-151.0,0.00027988,5]
[423580439,1780248656000,-188.077,0.00027988,3]
[423580433,1780248656000,-151.0,0.00027988,3]
[423580437,1780248656000,-151.0,0.00027988,3]
[423580436,1780248656000,-151.0,0.00027988,3]
[423580431,1780248656000,-151.0,0.00027988,2]
[423580438,1780248656000,-151.0,0.00027988,3]
[423580432,1780248656000,-162.463,0.00027988,2]
[423580435,1780248656000,-151.0,0.00027988,3]
[423580434,1780248656000,-151.0,0.00027988,3]
[423580442,1780248656000,-151.0,0.00027988,5]
[423580443,1780248656000,-276.385,0.00027988,5]
[423580380,1780248656000,-191.016808,0.00025342,2]
[423580406,1780248656000,-151.5,0.00027397,2]
[423580411,1780248656000,-540.64901102,0.00027397,2]
[423580420,1780248656000,-200.0,0.00027893,2]
[423580407,1780248656000,-151.5,0.00027397,2]
[423580383,1780248656000,-900.0,0.00025469,3]
[423580384,1780248656000,-1000.0,0.000255,2]
[423580382,1780248656000,-414114.2484,0.00025444,2]
[423580386,1780248656000,-158.0,0.00025674,120]
[423580385,1780248656000,-720.0,0.0002558,10]
[423580375,1780248656000,-1030.0,0.00025,2]
[423580409,1780248656000,-212.21532438,0.00027397,2]
[423580396,1780248656000,-6106.31835915,0.00026984,2]
[423580397,1780248656000,-1368.331145,0.00027,2]
[423580388,1780248656000,-534.2862174,0.00026,2]
[423580389,1780248656000,-1030.0,0.00026,2]
[423580398,1780248656000,-1030.0,0.00027,2]
[423580400,1780248656000,-341.58648035,0.00027148,2]
[423580392,1780248656000,-158.0,0.00026337,30]
[423580394,1780248656000,-158.0,0.00026674,120]
[423580387,1780248656000,-739.67786501,0.00025876,5]
[423580393,1780248656000,-500.0,0.000266,2]
[423580390,1780248656000,-420.0,0.0002608,2]
[423580414,1780248656000,-187.181053,0.00027397,2]
[423580404,1780248656000,-150.0,0.0002739,2]
[423580412,1780248656000,-542.58,0.00027397,2]
[423580413,1780248656000,-151.0,0.00027397,2]
[423580403,1780248656000,-151.0,0.0002739,30]
[423580410,1780248656000,-500.0,0.00027397,2]
[423580402,1780248656000,-254.214,0.0002739,30]
[423580405,1780248656000,-227.24958742,0.00027397,2]
[423580401,1780248656000,-151.0,0.0002739,30]
[423580395,1780248656000,-160.0,0.00026978,4]
[423580391,1780248656000,-196.27370174,0.0002616,2]
[423580399,1780248656000,-200.0,0.00027064,2]
[423580456,1780248657000,-299.79460284,0.00016916,2]
[423580460,1780248657000,-724.79345558,0.00017464,2]
[423580455,1780248657000,-585.243046,0.00016916,2]
[423580457,1780248657000,-500.0,0.00016947,2]
[423580454,1780248657000,-244.05235116,0.00016916,2]
[423580453,1780248657000,-1129.09,0.00016642,2]
[423580459,1780248657000,-404.29654442,0.00017464,2]
[423580450,1780248657000,-1321.85772387,0.00028,60]
[423580444,1780248657000,-187.291,0.00027988,2]
[423580448,1780248657000,-3119.21370763,0.00027988,2]
[423580452,1780248657000,-261.49359009,0.00016368,2]
[423580451,1780248657000,-867.59640991,0.00016368,2]
[423580447,1780248657000,-252.192,0.00027988,2]
[423580446,1780248657000,-2400.10553441,0.00027988,2]
[423580445,1780248657000,-4228.48875796,0.00027988,2]
[423580458,1780248657000,-1129.09,0.0001719,2]
[423580449,1780248657000,-233.23383377,0.00028,60]
[423580467,1780248657000,-863.96409575,0.00018834,2]
[423580475,1780248657000,-151.0,0.00020691,2]
[423580471,1780248657000,-1129.09,0.00019656,2]
[423580465,1780248657000,-717.6721943,0.0001856,2]
[423580479,1780248657000,-1036.0764176,0.00022,2]
[423580478,1780248657000,-1129.12,0.000213,2]
[423580480,1780248657000,-1030.0,0.00023,2]
[423580477,1780248657000,-1129.09,0.00021026,2]
[423580474,1780248657000,-1129.09,0.00020478,2]
[423580476,1780248657000,-1129.09,0.00020752,2]
[423580472,1780248657000,-1129.09,0.0001993,2]
[423580481,1780248657000,-2269.97896742,0.00028,60]
[423580470,1780248657000,-1129.09,0.00019382,2]
[423580461,1780248657000,-1129.09,0.00017738,2]
[423580464,1780248657000,-1129.09,0.00018286,2]
[423580463,1780248657000,-863.71425856,0.00018012,2]
[423580469,1780248657000,-1129.09,0.00019108,2]
[423580466,1780248657000,-411.4178057,0.0001856,2]
[423580473,1780248657000,-1129.09,0.00020204,2]
[423580468,1780248657000,-265.12590425,0.00018834,2]
[423580462,1780248657000,-265.37574144,0.00018012,2]
[423580680,1780249832000,-1801.85259405,0.0001385,2]
[423580681,1780249832000,-3198.14740595,0.0001385,2]
[423580684,1780249832000,-84.88150136,0.00014843,2]
[423580682,1780249832000,-4374.709,0.0001399,2]
[423580683,1780249832000,-300.0,0.00014842,2]
[423580828,1780249838000,-277.56,0.00014994,2]
[423580855,1780249838000,-500.0,0.00014995,2]
[423580856,1780249838000,-500.0,0.00014995,2]
[423580845,1780249838000,-185.32051258,0.00014994,2]
[423580841,1780249838000,-500.0,0.00014994,2]
[423580858,1780249838000,-500.0,0.00014995,2]
[423580843,1780249838000,-500.0,0.00014994,2]
[423580839,1780249838000,-500.0,0.00014994,2]
[423580837,1780249838000,-500.0,0.00014994,2]
[423580829,1780249838000,-500.0,0.00014994,2]
[423580824,1780249838000,-500.0,0.00014994,2]
[423580817,1780249838000,-500.0,0.00014994,2]
[423580821,1780249838000,-500.0,0.00014994,2]
[423580819,1780249838000,-500.0,0.00014994,2]
[423580835,1780249838000,-500.0,0.00014994,2]
[423580833,1780249838000,-500.0,0.00014994,2]
[423580831,1780249838000,-500.0,0.00014994,2]
[423580815,1780249838000,-192.26438907,0.00014975,2]
[423580814,1780249838000,-219.91421428,0.00014901,2]
[423580812,1780249838000,-184.49402327,0.00014895,2]
[423580809,1780249838000,-915.11849864,0.00014843,2]
[423580850,1780249838000,-620.03123162,0.00014994,2]
[423580826,1780249838000,-500.0,0.00014994,2]
[423580853,1780249838000,-500.0,0.00014995,2]
[423580905,1780249838000,-500.0,0.00014995,2]
[423580846,1780249838000,-500.0,0.00014994,2]
[423580860,1780249838000,-500.0,0.00014995,2]
[423580897,1780249838000,-500.0,0.00014995,2]
[423580909,1780249838000,-500.0,0.00014995,2]
[423580911,1780249838000,-500.0,0.00014995,2]
[423580907,1780249838000,-500.0,0.00014995,2]
[423580893,1780249838000,-500.0,0.00014995,2]
[423580891,1780249838000,-500.0,0.00014995,2]
[423580889,1780249838000,-500.0,0.00014995,2]
[423580887,1780249838000,-500.0,0.00014995,2]
[423580885,1780249838000,-500.0,0.00014995,2]
[423580883,1780249838000,-500.8390604,0.00014995,2]
[423580895,1780249838000,-500.0,0.00014995,2]
[423580877,1780249838000,-500.0,0.00014995,2]
[423580849,1780249838000,-500.0,0.00014994,2]
[423580862,1780249838000,-500.0,0.00014995,2]
[423580870,1780249838000,-500.0,0.00014995,2]
[423580868,1780249838000,-500.0,0.00014995,2]
[423580864,1780249838000,-500.0,0.00014995,2]
[423580866,1780249838000,-500.0,0.00014995,2]
[423580872,1780249838000,-500.0,0.00014995,2]
[423580879,1780249838000,-500.0,0.00014995,2]
[423580875,1780249838000,-500.0,0.00014995,2]
[423580874,1780249838000,-421.1349321,0.00014995,2]
[423580881,1780249838000,-500.9978282,0.00014995,2]
[423581009,1780249839000,-500.0,0.00014996,2]
[423581011,1780249839000,-500.0,0.00014996,2]
[423581003,1780249839000,-500.0,0.00014996,2]
[423581012,1780249839000,-500.0,0.00014996,2]
[423580999,1780249839000,-500.0,0.00014996,2]
[423581005,1780249839000,-500.0,0.00014996,2]
[423580997,1780249839000,-500.0,0.00014996,2]
[423580995,1780249839000,-500.0,0.00014996,2]
[423581007,1780249839000,-500.0,0.00014996,2]
[423580994,1780249839000,-500.0,0.00014996,2]
[423580990,1780249839000,-500.0,0.00014996,2]
[423581014,1780249839000,-500.0,0.00014996,2]
[423581001,1780249839000,-501.05505094,0.00014996,2]
[423581016,1780249839000,-594.21304005,0.00014996,2]
[423581039,1780249839000,-501.98856139,0.00014997,2]
[423581020,1780249839000,-2958.9367,0.00014996,2]
[423581025,1780249839000,-289.10459979,0.00014997,2]
[423581035,1780249839000,-500.0,0.00014997,2]
[423581029,1780249839000,-500.0,0.00014997,2]
[423581031,1780249839000,-500.0,0.00014997,2]
[423581024,1780249839000,-500.0,0.00014997,2]
[423581022,1780249839000,-500.0,0.00014996,2]
[423581027,1780249839000,-500.0,0.00014997,2]
[423581033,1780249839000,-500.0,0.00014997,2]
[423581037,1780249839000,-500.0,0.00014997,2]
[423580988,1780249839000,-500.66562568,0.00014996,2]
[423581041,1780249839000,-500.0,0.00014997,2]
[423581045,1780249839000,-500.0,0.00014997,2]
[423581043,1780249839000,-500.0,0.00014997,2]
[423581018,1780249839000,-2958.9367,0.00014996,2]
[423580992,1780249839000,-250.28174523,0.00014996,2]
[423580963,1780249839000,-500.0,0.00014996,2]
[423580974,1780249839000,-500.0,0.00014996,2]
[423581047,1780249839000,-500.0,0.00014997,2]
[423580930,1780249839000,-500.0,0.00014996,2]
[423580928,1780249839000,-500.0,0.00014996,2]
[423580932,1780249839000,-500.0,0.00014996,2]
[423580934,1780249839000,-500.0,0.00014996,2]
[423580936,1780249839000,-500.0,0.00014996,2]
[423580940,1780249839000,-538.6,0.00014996,2]
[423580938,1780249839000,-500.0,0.00014996,2]
[423580942,1780249839000,-293.21237687,0.00014996,2]
[423580955,1780249839000,-500.0,0.00014996,2]
[423580957,1780249839000,-169.55767274,0.00014996,2]
[423580944,1780249839000,-500.0,0.00014996,2]
[423580959,1780249839000,-500.0,0.00014996,2]
[423580961,1780249839000,-502.3292066,0.00014996,2]
[423580949,1780249839000,-500.0,0.00014996,2]
[423580951,1780249839000,-160.59767565,0.00014996,2]
[423580946,1780249839000,-500.0,0.00014996,2]
[423580948,1780249839000,-500.0,0.00014996,2]
[423580953,1780249839000,-500.0,0.00014996,2]
[423580965,1780249839000,-500.0,0.00014996,2]
[423580967,1780249839000,-500.60297063,0.00014996,2]
[423580972,1780249839000,-500.0,0.00014996,2]
[423580971,1780249839000,-500.0,0.00014996,2]
[423580969,1780249839000,-587.42973966,0.00014996,2]
[423580980,1780249839000,-500.0,0.00014996,2]
[423580982,1780249839000,-500.53701998,0.00014996,2]
[423580986,1780249839000,-500.0,0.00014996,2]
[423580984,1780249839000,-500.0,0.00014996,2]
[423580978,1780249839000,-500.0,0.00014996,2]
[423580976,1780249839000,-500.0,0.00014996,2]
[423581049,1780249839000,-500.98940515,0.00014997,2]
[423581176,1780249839000,-500.0,0.0001527,2]
[423581051,1780249839000,-501.26179018,0.00014997,2]
[423581122,1780249839000,-500.0,0.00015268,2]
[423581124,1780249839000,-500.0,0.00015268,2]
[423581126,1780249839000,-500.0,0.00015269,2]
[423581133,1780249839000,-500.0,0.00015269,2]
[423581135,1780249839000,-564.72204114,0.00015269,2]
[423581129,1780249839000,-500.0,0.00015269,2]
[423581137,1780249839000,-500.0,0.00015269,2]
[423581131,1780249839000,-500.0,0.00015269,2]
[423581141,1780249839000,-500.0,0.00015269,2]
[423581142,1780249839000,-500.0,0.00015269,2]
[423581139,1780249839000,-500.0,0.00015269,2]
[423581144,1780249839000,-500.0,0.00015269,2]
[423581053,1780249839000,-500.0,0.00014997,2]
[423581162,1780249839000,-500.0,0.00015269,2]
[423581164,1780249839000,-500.0,0.00015269,2]
[423581166,1780249839000,-500.0,0.00015269,2]
[423581160,1780249839000,-500.0,0.00015269,2]
[423581148,1780249839000,-501.93037863,0.00015269,2]
[423581168,1780249839000,-500.0,0.00015269,2]
[423581152,1780249839000,-500.0,0.00015269,2]
[423581150,1780249839000,-500.0,0.00015269,2]
[423581154,1780249839000,-500.0,0.00015269,2]
[423581170,1780249839000,-500.0,0.0001527,2]
[423581156,1780249839000,-500.0,0.00015269,2]
[423581158,1780249839000,-500.0,0.00015269,2]
[423581172,1780249839000,-500.0,0.0001527,2]
[423581174,1780249839000,-572.01974826,0.0001527,2]
[423581178,1780249839000,-327.8,0.0001527,2]
[423581180,1780249839000,-500.0,0.0001527,2]
[423581120,1780249839000,-183.63633377,0.00015212,2]
[423581118,1780249839000,-439.82842857,0.00015212,2]
[423581146,1780249839000,-500.0,0.00015269,2]
[423581103,1780249839000,-500.0,0.00014997,2]
[423581104,1780249839000,-500.0,0.00014997,2]
[423581061,1780249839000,-500.0,0.00014997,2]
[423581057,1780249839000,-500.0,0.00014997,2]
[423581055,1780249839000,-500.0,0.00014997,2]
[423581059,1780249839000,-500.0,0.00014997,2]
[423581063,1780249839000,-500.99392698,0.00014997,2]
[423581067,1780249839000,-500.0,0.00014997,2]
[423581065,1780249839000,-500.0,0.00014997,2]
[423581069,1780249839000,-500.0,0.00014997,2]
[423581073,1780249839000,-500.95002417,0.00014997,2]
[423581081,1780249839000,-503.58858801,0.00014997,2]
[423581083,1780249839000,-501.19493224,0.00014997,2]
[423581075,1780249839000,-502.13846415,0.00014997,2]
[423581077,1780249839000,-402.51230891,0.00014997,2]
[423581088,1780249839000,-500.48,0.00014997,2]
[423581071,1780249839000,-501.5055505,0.00014997,2]
[423581078,1780249839000,-505.58002744,0.00014997,2]
[423581086,1780249839000,-500.0,0.00014997,2]
[423581098,1780249839000,-503.6162454,0.00014997,2]
[423581116,1780249839000,-195.2216,0.00015133,2]
[423581114,1780249839000,-500.0,0.00014997,2]
[423581096,1780249839000,-500.0,0.00014997,2]
[423581112,1780249839000,-582.13898903,0.00014997,2]
[423581094,1780249839000,-248.87519191,0.00014997,2]
[423581100,1780249839000,-500.0,0.00014997,2]
[423581110,1780249839000,-500.0,0.00014997,2]
[423581106,1780249839000,-500.0,0.00014997,2]
[423581092,1780249839000,-500.0,0.00014997,2]
[423581090,1780249839000,-500.0,0.00014997,2]
[423581085,1780249839000,-500.0,0.00014997,2]
[423581108,1780249839000,-500.0,0.00014997,2]
[423581263,1780249840000,-500.0,0.00015271,2]
[423581265,1780249840000,-500.0,0.00015271,2]
[423581277,1780249840000,-157.79160527,0.00015292,2]
[423581273,1780249840000,-384.52877814,0.00015286,2]
[423581257,1780249840000,-500.0,0.00015271,2]
[423581259,1780249840000,-500.0,0.00015271,2]
[423581267,1780249840000,-335.4443692,0.00015271,2]
[423581269,1780249840000,-500.0,0.00015271,2]
[423581256,1780249840000,-500.0,0.00015271,2]
[423581254,1780249840000,-500.0,0.00015271,2]
[423581252,1780249840000,-500.0,0.00015271,2]
[423581261,1780249840000,-500.0,0.00015271,2]
[423581271,1780249840000,-500.0,0.00015271,2]